bitfinex/quotes_ETHUSD_20250823
["timestamp","ask_amount","ask_price","bid_price","bid_amount"]
[1755964348438,1.614,4763.9,4763.7,2.38650859]
[1755964348639,0.02,4764.8,4763.8,0.4634]
[1755964348841,0.02,4764.8,4764.7,2.38606802]
[1755964349033,0.02,4764.8,4764.7,0.2873]
[1755964349233,0.02,4764.8,4764.7,2.84946802]
[1755964349951,3.9036,4764.8,4762.1,3.571]
[1755964350154,3.0,4764.7,4763.4,0.4634]
[1755964350351,5.09877532,4764.7,4763.3,0.001]
[1755964350562,0.1048,4763.9,4763.3,0.001]
[1755964350740,3.573,4763.8,4763.4,2.56273463]
[1755964351062,3.573,4763.8,4763.5,0.4634]
[1755964351550,3.573,4763.8,4763.5,2.56268508]
[1755964351755,3.573,4763.8,4763.5,0.4634]
[1755964352334,3.573,4763.8,4763.5,2.56269152]
[1755964352848,3.573,4763.8,4763.7,0.2873]
[1755964353030,0.1048,4763.9,4763.7,0.2873]
[1755964353232,3.571,4763.8,4763.7,0.2873]
[1755964353435,3.571,4763.8,4763.7,0.7507]
[1755964353865,0.1048,4763.9,4763.7,0.7507]
[1755964355172,0.1048,4763.9,4763.7,2.84989726]
[1755964355471,0.3136,4763.8,4763.3,0.001]
[1755964355849,0.1048,4763.4,4763.3,0.001]
[1755964356046,3.9874,4763.4,4763.3,0.001]
[1755964357071,6.9874,4763.4,4763.3,0.001]
[1755964357366,7.4291,4763.4,4763.3,0.001]
[1755964359264,7.4291,4763.4,4763.3,0.2883]
[1755964359265,3.6728,4763.4,4763.3,0.2883]
[1755964359552,3.6728,4763.4,4763.3,0.7517]
[1755964359740,3.6728,4763.4,4763.3,0.2883]
[1755964359938,1.614,4763.9,4763.3,0.7517]
[1755964360278,1.614,4763.9,4763.4,0.5682]
[1755964360445,1.614,4764.6,4764.1,2.09899643]
[1755964360646,1.614,4764.6,4763.5,0.13199]
[1755964360872,3.572,4764.5,4763.9,0.1048]
[1755964361067,3.572,4764.5,4764.3,2.09890886]
[1755964361266,3.572,4764.5,4764.1,2.09903234]
[1755964361450,3.572,4764.5,4764.4,0.2873]
[1755964361649,1.7188,4764.6,4764.4,0.2873]
[1755964361882,1.614,4764.6,4764.5,2.09885612]
[1755964362051,1.614,4764.6,4764.4,2.09890017]
[1755964362247,0.022,4764.8,4764.7,2.09876802]
[1755964362448,3.594,4764.8,4764.7,2.38606802]
[1755964362655,4.04495292,4764.8,4764.7,2.84946802]
[1755964363780,4.04495292,4764.8,4764.7,0.2873]
[1755964363981,4.04495292,4764.8,4764.5,0.1048]
[1755964364280,3.594,4764.8,4764.6,2.09881207]
[1755964364479,0.4518984,4764.7,4764.6,2.09881207]
[1755964364657,0.4518984,4764.7,4763.7,0.4634]
[1755964364881,0.5566984,4764.7,4763.8,0.1048]
[1755964366308,0.5566984,4764.7,4763.9,2.09911393]
[1755964366806,0.5566984,4764.7,4764.0,2.09907556]
[1755964367322,0.0583,4764.1,4763.8,0.1048]
[1755964367629,3.1048,4763.9,4763.0,2.09950968]
[1755964367790,0.1048,4763.4,4763.1,2.099468]
[1755964367992,0.1048,4763.4,4763.0,0.4634]
[1755964367993,3.6778,4763.4,4763.0,2.09948186]
[1755964368532,3.991,4763.4,4762.8,0.021]
[1755964368687,6.991,4763.4,4762.8,0.021]
[1755964368887,7.89499753,4763.4,4762.8,0.021]
[1755964371192,7.44299753,4763.4,4762.8,0.021]
[1755964371419,7.12979753,4763.4,4762.8,0.021]
[1755964371624,7.12979753,4763.4,4762.8,2.12059933]
[1755964371832,7.12979753,4763.4,4762.8,0.021]
[1755964372530,7.44299753,4763.4,4762.8,0.021]
[1755964373302,0.45199753,4763.4,4763.3,2.85318488]
[1755964373498,0.55679753,4764.2,4763.3,0.8586]
[1755964373734,3.6768,4764.2,4763.4,0.4455]
[1755964374035,0.45199753,4764.1,4763.9,2.09911476]
[1755964374241,0.45199753,4764.1,4763.4,0.4455]
[1755964374412,0.45199753,4764.1,4763.7,2.09918957]
[1755964374597,0.45199753,4764.1,4763.8,2.09915761]
[1755964375008,0.76619754,4764.1,4763.3,0.1058]
[1755964375246,0.1048,4763.8,4763.3,2.10038384]
[1755964375409,0.1048,4763.8,4763.3,0.001]
[1755964375606,0.1048,4763.8,4763.7,0.3073]
[1755964375843,3.6758,4763.8,4763.7,0.3073]
[1755964376647,4.12828516,4763.8,4763.3,2.10038235]
[1755964376820,3.6758,4763.8,4763.4,2.09933577]
[1755964377144,0.1048,4763.5,4763.3,0.001]
[1755964377359,3.8832,4763.4,4763.3,0.001]
[1755964377559,4.33570307,4763.4,4763.3,0.001]
[1755964377863,7.33570307,4763.4,4763.3,0.001]
[1755964378039,7.78770307,4763.4,4763.3,0.001]
[1755964378423,7.33570307,4763.4,4763.3,0.001]
[1755964379316,7.02250307,4763.4,4763.3,0.001]
[1755964380158,4.02250307,4763.4,4763.3,0.001]
[1755964380368,0.002,4764.1,4763.3,0.7538]
[1755964380664,0.1068,4764.1,4764.0,2.0990764]
[1755964380847,3.6798,4764.1,4764.0,2.4063764]
[1755964381034,3.6798,4764.1,4764.0,0.7528]
[1755964381431,3.6798,4764.1,4764.0,0.3073]
[1755964382067,3.6798,4764.1,4764.0,0.7528]
[1755964382459,3.6798,4764.1,4764.0,2.8518764]
[1755964382640,0.002,4764.1,4764.0,2.8518764]
[1755964383233,0.002,4764.1,4764.0,3.35745845]
[1755964383542,0.002,4764.1,4764.0,3.46225845]
[1755964384834,0.002,4764.1,4764.0,2.0990764]
[1755964385034,0.002,4764.1,4764.0,2.4063764]
[1755964385257,0.002,4764.1,4764.0,2.8518764]
[1755964386266,0.002,4764.1,4764.0,2.9566764]
[1755964387283,0.002,4764.1,4764.0,2.4063764]
[1755964387582,0.002,4764.1,4763.9,2.09910987]
[1755964387874,0.002,4764.1,4764.0,2.0990764]
[1755964388076,0.002,4764.1,4764.0,2.4063764]
[1755964388793,0.002,4764.1,4764.0,3.3574602]
[1755964392301,0.002,4764.1,4764.0,2.8518764]
[1755964395197,0.002,4764.1,4764.0,2.8726764]
[1755964395785,0.002,4764.1,4764.0,6.4396764]
[1755964396388,0.002,4764.1,4764.0,2.8726764]
[1755964396588,0.002,4764.1,4764.0,6.4386764]
[1755964396917,0.002,4764.1,4764.0,7.3030402]
[1755964397081,1e-08,4764.1,4764.0,8.0678402]
[1755964397281,1e-08,4764.1,4764.0,11.0678402]
[1755964400609,1e-08,4764.1,4764.0,10.9630402]
[1755964400809,1e-08,4764.1,4764.0,11.0678402]
[1755964401912,1e-08,4764.1,4764.0,11.0668402]
[1755964402114,1e-08,4764.1,4764.0,11.0658402]
[1755964402491,0.02,4765.8,4765.0,2.09863588]
[1755964402693,0.02,4765.8,4765.7,2.50842763]
[1755964402891,0.02,4765.8,4765.7,6.07342763]
[1755964403306,0.02,4765.8,4765.7,6.52962763]
[1755964403514,0.02,4765.8,4765.7,7.39242962]
[1755964404014,0.02,4765.8,4765.7,10.39242962]
[1755964404982,0.02,4765.8,4765.7,9.93622962]
[1755964405315,0.02,4765.8,4765.7,10.39242962]
[1755964407494,0.02,4765.8,4765.7,6.37122962]
[1755964407791,0.02,4765.8,4765.7,9.93222962]
[1755964408207,0.02,4765.8,4765.7,10.38842962]
[1755964409201,1e-08,4765.8,4765.7,10.94362962]
[1755964409418,1e-08,4765.8,4765.7,11.04842962]
[1755964410410,1e-08,4765.8,4765.7,7.48742962]
[1755964410721,1e-08,4765.8,4765.7,11.04742962]
[1755964410933,1e-08,4765.8,4765.7,11.20551292]
[1755964411629,1e-08,4765.8,4765.7,11.20451292]
[1755964411803,1e-08,4765.8,4765.7,11.20351292]
[1755964412623,1e-08,4765.8,4765.7,11.20551292]
[1755964413392,1e-08,4765.8,4765.7,7.64551292]
[1755964413589,1e-08,4765.8,4765.7,11.20551292]
[1755964415123,1e-08,4766.3,4766.2,5.7581075]
[1755964415424,1e-08,4766.3,4766.2,12.53086377]
[1755964415633,0.022,4766.8,4766.7,2.75788742]
[1755964415634,1e-08,4766.8,4766.7,2.75788742]
[1755964415799,1e-08,4766.8,4766.7,9.62318742]
[1755964415998,1e-08,4766.8,4766.7,10.18418742]
[1755964416206,1e-08,4766.8,4766.7,11.62220766]
[1755964420317,1e-08,4766.8,4766.7,8.06220766]
[1755964420536,1e-08,4766.8,4766.7,11.62020766]
[1755964421536,1e-08,4766.8,4766.7,11.61920766]
[1755964422540,1e-08,4766.8,4766.7,8.06220766]
[1755964422909,1e-08,4766.8,4766.7,11.61820766]
[1755964424412,1e-08,4766.8,4766.7,11.61720766]
[1755964424713,1e-08,4766.8,4766.7,11.16000766]
[1755964426439,1e-08,4766.8,4766.7,11.61620766]
[1755964427041,1e-08,4766.8,4766.7,11.16000766]
[1755964428046,1e-08,4766.8,4766.7,7.60600766]
[1755964428246,1e-08,4766.8,4766.7,11.15800766]
[1755964428539,1e-08,4766.8,4766.7,7.30070766]
[1755964428752,1e-08,4766.8,4766.7,10.19170766]
[1755964428934,1e-08,4766.8,4766.7,10.85170766]
[1755964429119,0.00200001,4766.8,4766.7,10.85170766]
[1755964429325,1e-08,4766.8,4766.7,10.85170766]
[1755964429958,0.23710001,4766.8,4766.7,2.20268742]
[1755964430260,0.23950001,4766.8,4766.7,8.75368742]
[1755964430412,0.23710001,4766.8,4766.7,8.75368742]
[1755964430738,0.23710001,4766.8,4766.7,5.20268742]
[1755964430912,0.23710001,4766.8,4766.7,8.75368742]
[1755964431518,0.23710001,4766.8,4766.7,5.20268742]
[1755964431861,0.23950001,4766.8,4766.2,1.613]
[1755964432059,0.0024,4766.7,4766.3,3.56]
[1755964432262,0.0024,4766.7,4766.6,2.09793143]
[1755964432757,0.2371,4766.7,4766.6,2.09793143]
[1755964434150,0.2371,4766.7,4766.6,5.65793143]
[1755964436219,0.2371,4766.7,4766.6,2.09793143]
[1755964436645,0.2394,4766.7,4766.2,3.558]
[1755964436850,0.0047,4766.6,4766.3,2.09806348]
[1755964437032,0.2324,4766.4,4766.3,2.09806348]
[1755964437431,0.2394,4766.4,4766.3,2.09806348]
[1755964437949,0.2394,4766.4,4766.2,2.09810281]
[1755964438134,0.007,4766.3,4766.2,3.558]
[1755964438346,0.2372,4766.3,4766.2,3.558]
[1755964438858,0.2372,4766.3,4766.2,5.6561075]
[1755964440055,0.2372,4766.3,4766.2,2.0981075]
[1755964440290,1e-08,4766.8,4766.1,3.558]
[1755964440447,1e-08,4766.8,4766.7,2.09788742]
[1755964440774,1e-08,4766.8,4766.7,5.65388742]
[1755964441347,1e-08,4766.8,4766.7,5.96318742]
[1755964441550,1e-08,4766.8,4766.7,6.42668742]
[1755964441737,1e-08,4766.8,4766.7,6.53148742]
[1755964441943,1e-08,4766.8,4766.7,7.55573138]
[1755964442272,1e-08,4766.8,4766.7,7.45093138]
[1755964442439,1e-08,4766.8,4766.7,11.11093138]
[1755964442832,1e-08,4766.8,4766.7,7.63897538]
[1755964443063,1e-08,4766.8,4766.7,11.30077538]
[1755964443241,1e-08,4767.3,4767.2,2.75766739]
[1755964443442,1e-08,4767.3,4767.2,9.62496739]
[1755964443644,1e-08,4767.3,4767.2,10.19326739]
[1755964445229,1e-08,4767.3,4767.2,5.20246739]
[1755964445431,1e-08,4767.3,4767.2,8.76046739]
[1755964445648,1e-08,4767.3,4767.2,10.30570496]
[1755964446635,1e-08,4767.3,4767.2,6.43840496]
[1755964446847,1e-08,4767.3,4767.2,9.99540496]
[1755964447043,1e-08,4767.3,4767.2,10.76820496]
[1755964447764,1e-08,4767.3,4767.2,11.42820496]
[1755964453671,1e-08,4767.3,4767.2,11.85500496]
[1755964453876,1e-08,4767.3,4767.2,11.84900496]
[1755964454669,1e-08,4767.3,4767.2,7.83450496]
[1755964454873,1e-08,4767.3,4767.2,11.07620496]
[1755964455070,1e-08,4767.3,4767.2,11.38550496]
[1755964456053,1e-08,4767.3,4767.2,11.38450496]
[1755964456283,1e-08,4767.3,4767.2,11.84800496]
[1755964456471,1e-08,4767.3,4767.2,11.38450496]
[1755964456787,1e-08,4767.3,4767.2,11.07420496]
[1755964456969,0.09900001,4767.3,4767.2,5.20246739]
[1755964457170,0.09900001,4767.3,4767.2,8.75146739]
[1755964457763,0.09900001,4767.3,4767.2,5.20246739]
[1755964457970,0.09900001,4767.3,4767.2,8.75146739]
[1755964458582,1e-08,4767.3,4767.2,8.75146739]
[1755964458769,1e-08,4767.3,4767.2,10.02918496]
[1755964458976,1e-08,4767.3,4767.2,10.34048496]
[1755964460283,1e-08,4767.3,4767.2,10.02818496]
[1755964461304,0.42600001,4768.3,4768.2,2.09722746]
[1755964461462,0.52500001,4768.3,4768.2,5.64422746]
[1755964463373,0.5209,4768.3,4768.2,5.64422746]
[1755964463605,0.5209,4768.3,4767.6,3.547]
[1755964463897,0.6257,4768.3,4767.6,3.6518]
[1755964464095,0.6277,4768.3,4767.8,2.09736828]
[1755964464288,0.4219,4768.2,4767.8,2.09736828]
[1755964464487,0.1022,4767.9,4767.8,2.09736828]
[1755964464673,0.5209,4767.9,4767.8,2.09736828]
[1755964466197,0.1022,4767.9,4767.8,2.09736828]
[1755964466578,0.1022,4767.9,4767.8,5.64436828]
[1755964468077,0.1022,4767.9,4767.8,5.66436828]
[1755964470376,0.5209,4767.9,4767.8,3.567]
[1755964470587,0.5209,4767.9,4767.8,5.66440341]
[1755964471473,0.1022,4767.9,4767.8,5.66440341]
[1755964473209,0.1022,4767.9,4767.8,5.64440341]
[1755964475998,0.1022,4767.9,4767.7,2.09744671]
[1755964476179,0.4187,4767.8,4767.7,2.09744671]
[1755964476377,0.4187,4767.8,4767.7,5.64444671]
[1755964476378,0.5241,4767.8,4767.7,5.64444671]
[1755964476774,0.1054,4767.8,4767.7,5.64444671]
[1755964478339,0.1054,4767.8,4767.7,2.09744671]
[1755964478618,0.1054,4767.8,4767.7,5.64444671]
[1755964478996,0.5219,4767.8,4767.7,5.64444671]
[1755964479417,0.1054,4767.8,4767.7,5.64444671]
[1755964480819,0.002,4768.3,4768.0,2.09731543]
[1755964481109,0.1068,4768.3,4768.2,2.09722746]
[1755964481317,0.2058,4768.3,4768.2,2.09722746]
[1755964485990,0.1068,4768.3,4768.2,2.09722746]
[1755964486193,0.2058,4768.3,4768.1,5.64425882]
[1755964487089,0.2905,4768.2,4768.1,5.64425882]
[1755964488224,0.1068,4768.3,4768.1,2.09725882]
[1755964490001,0.1068,4768.3,4768.2,2.09722746]
[1755964490212,0.002,4768.3,4768.2,6.81597926]
[1755964490413,0.002,4768.3,4768.2,7.27337926]
[1755964492132,0.002,4768.3,4768.2,5.64422746]
[1755964492292,0.101,4768.3,4768.2,5.64422746]
[1755964492821,0.002,4768.3,4768.2,5.64422746]
[1755964494234,0.002,4768.3,4768.2,5.93702746]
[1755964496198,0.002,4768.3,4768.2,5.64422746]
[1755964498334,0.003,4768.3,4768.1,2.09723714]
[1755964498538,0.003,4768.3,4768.2,3.546]
[1755964498717,0.003,4768.3,4768.2,5.64322746]
[1755964498915,0.003,4768.3,4768.2,3.546]
[1755964499316,0.003,4768.3,4768.2,5.64322746]
[1755964499843,0.003,4768.3,4768.2,3.546]
[1755964500242,0.003,4768.3,4768.2,5.93602746]
[1755964500243,0.002,4768.3,4768.2,5.93602746]
[1755964500445,0.002,4768.3,4768.2,6.39342746]
[1755964502149,0.002,4768.3,4768.2,5.93602746]
[1755964502307,0.002,4768.3,4768.2,2.84742746]
[1755964502507,0.002,4768.3,4768.2,6.39342746]
[1755964503102,0.002,4768.3,4768.2,5.93602746]
[1755964503334,0.002,4768.3,4768.2,5.64322746]
[1755964503534,0.0978,4768.3,4768.2,3.546]
[1755964503807,0.002,4768.3,4768.2,5.64322746]
[1755964504405,0.0978,4768.3,4766.9,0.8834]
[1755964504649,0.1048,4768.2,4767.6,2.09745071]
[1755964504807,0.1048,4768.2,4767.4,2.20237839]
[1755964504808,0.002,4768.3,4767.7,3.546]
[1755964505010,0.1048,4767.8,4767.7,2.0974474]
[1755964505421,0.2039,4767.8,4767.6,5.64348207]
[1755964505628,0.2039,4767.8,4767.6,3.546]
[1755964505810,0.2039,4767.8,4767.7,2.0974474]
[1755964506454,0.1048,4767.8,4767.7,2.0974474]
[1755964509853,10.31696936,4768.5,4767.6,5.64348732]
[1755964510212,0.1048,4767.8,4767.6,3.546]
[1755964510459,0.1048,4767.8,4767.7,2.3902474]
[1755964510663,0.630334,4769.4,4769.2,2.09678772]
[1755964510819,0.630334,4769.4,4769.2,5.93458772]
[1755964511133,0.630334,4769.4,4769.2,6.49678772]
[1755964511514,0.02,4769.8,4769.2,6.49678772]
[1755964515115,0.101,4769.3,4768.5,0.25]
[1755964515226,0.1048,4769.2,4768.6,3.545]
[1755964515429,0.1022,4768.7,4768.5,0.25]
[1755964515630,0.5244,4768.6,4768.5,0.25]
[1755964515968,0.6287,4768.6,4768.5,0.25]
[1755964516377,0.4176,4768.6,4768.5,0.25]
[1755964517226,0.5218,4768.6,4768.5,0.25]
[1755964518360,0.1068,4769.3,4768.9,2.09688202]
[1755964518563,0.2038,4769.0,4768.5,0.25]
[1755964518747,0.2038,4769.0,4768.6,2.09704005]
[1755964518951,0.2038,4769.0,4768.9,2.09691962]
[1755964519351,0.2038,4769.0,4768.8,2.09695585]
[1755964519534,0.2038,4769.0,4768.9,2.09691962]
[1755964520050,0.2038,4769.0,4768.6,2.09704152]
[1755964520256,0.099,4769.0,4768.7,2.0970065]
[1755964520637,0.1048,4768.8,4768.7,2.0970065]
[1755964521235,0.1048,4768.8,4768.6,2.09704299]
[1755964521449,0.1048,4768.8,4768.7,2.09700757]
[1755964521644,0.1048,4768.8,4768.7,2.39760757]
[1755964522465,0.002,4769.3,4768.7,7.27326424]
[1755964522667,0.002,4769.3,4769.2,2.09678772]
[1755964522871,0.002,4769.3,4769.2,6.04718772]
[1755964523042,0.002,4769.3,4769.2,6.50328772]
[1755964524875,0.02,4769.8,4769.7,2.09656791]
[1755964525102,0.02,4769.8,4769.7,8.48416242]
[1755964525282,0.02,4769.8,4769.7,8.58896242]
[1755964525484,0.02,4769.8,4769.7,9.04506242]
[1755964525775,0.02,4769.8,4769.7,9.12906442]
[1755964526653,0.02,4769.8,4769.7,5.58406442]
[1755964526855,0.02,4769.8,4769.7,9.12806442]
[1755964527458,0.02,4770.8,4770.2,2.09634816]
[1755964527774,0.02,4770.8,4770.2,9.60094816]
[1755964527775,1e-08,4770.3,4770.2,9.60094816]
[1755964527980,1e-08,4770.3,4770.2,10.05704816]
[1755964528287,1e-08,4770.8,4770.7,2.75612845]
[1755964528450,1e-08,4770.8,4770.7,11.21272845]
[1755964528778,1e-08,4770.8,4770.7,13.45013104]
[1755964528990,1.7368,4772.8,4772.7,2.09525006]
[1755964528991,0.02,4772.8,4772.7,2.09525006]
[1755964529162,1e-08,4772.8,4772.7,11.00795006]
[1755964529353,1e-08,4772.8,4772.7,9.43427705]
[1755964529555,1e-08,4772.8,4772.7,8.87907705]
[1755964529882,1e-08,4772.8,4772.7,13.08307705]
[1755964530109,1e-08,4772.8,4772.7,13.35234875]
[1755964530389,0.02,4775.8,4772.7,13.35234875]
[1755964530390,0.1048,4775.1,4775.0,2.09424083]
[1755964530556,0.02,4775.8,4775.0,1.612]
[1755964530871,0.2495,4775.7,4775.2,0.66]
[1755964531058,0.02,4775.8,4775.7,2.09393387]
[1755964531257,0.02,4775.8,4775.7,3.6708]
[1755964531482,0.2195,4776.3,4775.7,3.569]
[1755964531779,0.099,4775.8,4775.7,0.1048]
[1755964531981,0.099,4775.8,4773.1,2.09506219]
[1755964531982,0.099,4775.8,4775.5,3.57]
[1755964532180,0.099,4775.8,4775.2,0.1048]
[1755964532483,0.1048,4775.6,4775.4,3.568]
[1755964532685,0.1048,4775.8,4775.1,3.57]
[1755964533065,0.1022,4775.2,4774.0,1.611]
[1755964533276,0.1048,4774.9,4773.7,3.571]
[1755964533482,0.1048,4774.9,4774.1,0.1048]
[1755964533790,0.426,4775.7,4774.2,4.0271]
[1755964534088,0.426,4775.7,4773.7,0.4561]
[1755964534286,0.426,4775.7,4773.8,3.575]
[1755964534504,0.426,4775.7,4773.6,5.186]
[1755964534658,0.1048,4774.3,4773.6,5.2908]
[1755964534963,0.1048,4774.3,4773.7,3.576]
[1755964535163,0.1048,4774.8,4773.7,4.0321]
[1755964535371,0.629528,4774.5,4774.1,0.1048]
[1755964535556,0.426,4775.5,4774.1,3.576]
[1755964535754,0.629493,4774.8,4774.3,2.09453649]
[1755964535985,0.629493,4774.8,4773.7,0.4561]
[1755964536184,0.1048,4775.0,4774.3,0.1048]
[1755964536356,0.1048,4775.2,4774.6,0.1048]
[1755964536562,0.099,4774.7,4774.6,0.1048]
[1755964536760,0.099,4774.7,4774.4,3.578]
[1755964536761,0.099,4774.7,4773.6,2.0671]
[1755964536970,0.1048,4774.5,4773.8,0.1048]
[1755964537576,0.1048,4774.9,4774.2,0.1048]
[1755964537861,0.1048,4774.9,4773.7,3.579]
[1755964538193,0.1048,4774.5,4773.8,0.1048]
[1755964538408,0.099,4773.9,4773.8,0.1048]
[1755964538610,0.099,4773.9,4773.6,1.611]
[1755964538787,0.099,4773.9,4773.3,3.581]
[1755964538962,0.099,4773.9,4773.4,0.1048]
[1755964539303,0.1048,4774.1,4773.4,0.1048]
[1755964539503,0.426,4773.9,4773.4,0.1048]
[1755964541599,2.51990302,4775.8,4773.8,2.39533116]
[1755964541770,0.62948,4775.0,4774.2,2.09458384]
[1755964542104,0.62948,4775.0,4774.1,2.5507327]
[1755964542271,0.62948,4775.0,4774.4,2.09448333]
[1755964542604,0.629522,4775.3,4773.9,3.579]
[1755964542909,0.099,4774.2,4773.3,3.582]
[1755964543066,0.099,4774.2,4773.2,3.584]
[1755964543491,0.099,4774.2,4773.2,5.67903037]
[1755964544146,0.32772561,4774.8,4773.2,3.584]
[1755964544428,0.32772561,4774.8,4773.3,6.78525862]
[1755964544635,0.32772561,4774.8,4773.4,2.5510428]
[1755964544990,0.32772561,4774.8,4773.4,0.4561]
[1755964545588,0.32772561,4774.8,4773.8,2.09472663]
[1755964545792,0.32772561,4774.8,4773.9,0.4561]
[1755964546086,0.32772561,4774.8,4772.9,3.70616043]
[1755964546087,0.75372561,4774.8,4773.7,3.585]
[1755964546290,2.09437539,4774.7,4773.5,3.585]
[1755964546597,0.75372561,4774.8,4773.5,3.585]
[1755964546797,3.0,4774.7,4773.5,3.585]
[1755964547012,0.75372561,4774.8,4773.5,3.585]
[1755964547197,3.0,4774.7,4773.5,3.585]
[1755964548224,3.0,4774.7,4773.4,2.09494102]
[1755964548388,2.52033039,4774.8,4773.4,2.09494102]
[1755964548585,0.426,4774.8,4773.6,2.09482317]
[1755964548823,0.426,4774.8,4773.3,3.584]
[1755964549037,0.426,4774.8,4773.4,2.5453428]
[1755964549190,0.426,4774.8,4773.5,2.09489892]
[1755964549485,0.629615,4774.7,4773.4,2.5453154]
[1755964549685,0.629615,4774.7,4773.4,0.4504]
[1755964549891,3.629615,4774.7,4773.4,0.4504]
[1755964550600,0.629615,4774.7,4773.3,3.581]
[1755964551202,0.629615,4774.7,4773.4,2.0949428]
[1755964551811,0.099,4773.5,4772.2,1.612]
[1755964552318,0.1048,4772.8,4772.2,0.001]
[1755964552648,0.2071,4772.8,4772.2,0.001]
[1755964553317,0.734634,4772.8,4772.2,0.001]
[1755964553531,0.32781633,4773.3,4772.7,2.85845006]
[1755964553699,0.1048,4773.3,4772.8,2.09520616]
[1755964553885,0.629724,4773.2,4772.8,4.28368062]
[1755964554089,0.1048,4773.8,4773.3,2.09498287]
[1755964554318,0.629662,4773.6,4773.3,2.09498287]
[1755964554488,0.629662,4773.6,4773.4,0.4504]
[1755964555218,0.629662,4773.6,4773.5,0.7622]
[1755964555408,0.1048,4774.0,4773.6,2.09485503]
[1755964555610,0.099,4773.7,4772.2,2.09646846]
[1755964555832,0.1048,4773.1,4772.4,2.20017982]
[1755964556019,0.1048,4773.1,4772.5,2.09532557]
[1755964556324,0.1048,4772.8,4772.2,6.13085974]
[1755964556507,0.2038,4772.8,4772.2,0.001]
[1755964556823,0.19534987,4773.4,4772.7,0.3128]
[1755964556999,0.1048,4772.8,4772.7,0.001]
[1755964557923,3.81190616,4772.8,4772.7,0.001]
[1755964558220,7.87841924,4772.8,4772.7,0.001]
[1755964560444,7.75831924,4772.8,4772.7,0.001]
[1755964560746,7.75831924,4772.8,4772.2,0.001]
[1755964560747,2.09542568,4772.3,4772.2,0.001]
[1755964560946,2.0958834,4771.3,4769.7,2.09652829]
[1755964561117,2.0958834,4771.3,4769.6,0.4504]
[1755964561118,0.1048,4770.4,4769.6,0.4504]
[1755964561320,0.1048,4769.9,4769.6,0.4504]
[1755964561650,0.3165,4769.7,4768.5,0.251]
[1755964561825,0.1048,4769.2,4768.5,0.251]
[1755964562031,0.1048,4769.2,4768.5,2.3480838]
[1755964562227,0.1048,4768.8,4768.6,0.50004954]
[1755964562539,0.1048,4768.8,4768.7,0.7622]
[1755964562847,0.195475,4769.8,4768.5,0.251]
[1755964562848,1.611,4769.2,4768.5,0.251]
[1755964563062,3.0,4769.0,4768.5,0.251]
[1755964566061,0.0042,4768.6,4768.5,0.251]
[1755964566761,0.33231179,4768.6,4768.5,0.251]
[1755964567466,6.92131179,4768.6,4768.5,0.251]
[1755964567648,6.5932,4768.6,4768.5,0.251]
[1755964568050,6.5922,4768.6,4768.5,0.251]
[1755964568252,0.04,4768.8,4768.5,0.5628]
[1755964568460,0.04,4768.8,4768.7,2.09700757]
[1755964568759,0.04,4768.8,4768.7,2.92953609]
[1755964568975,0.02,4769.8,4769.7,2.09656791]
[1755964569131,0.02,4769.8,4769.7,2.40836791]
[1755964569333,0.02,4769.8,4769.7,2.85876791]
[1755964569530,0.02,4769.8,4769.7,3.35430888]
[1755964570537,0.02,4769.8,4769.7,8.56230888]
[1755964570763,0.02,4769.8,4769.7,4.96630888]
[1755964571071,1e-08,4769.8,4769.7,7.96630888]
[1755964571234,1e-08,4769.8,4769.7,11.56330888]
[1755964572268,1e-08,4769.8,4769.7,7.96630888]
[1755964572961,1e-08,4769.8,4769.7,8.07110888]
[1755964574061,1e-08,4769.8,4769.7,11.66810888]
[1755964576570,1e-08,4769.8,4769.7,12.32810888]
[1755964576936,1e-08,4769.8,4769.7,7.96890888]
[1755964577138,1e-08,4769.8,4769.7,11.10990888]
[1755964577339,1e-08,4769.8,4769.7,11.11090888]
[1755964577539,1e-08,4769.8,4769.7,8.11090888]
[1755964578041,1e-08,4769.8,4769.7,4.51590888]
[1755964578237,1e-08,4769.8,4769.7,2.09656791]
[1755964578238,0.03400001,4769.8,4769.7,2.09656791]
[1755964578438,0.03292643,4769.8,4769.6,2.096572]
[1755964578649,0.03292643,4769.8,4769.2,2.09676423]
[1755964578871,0.03292643,4769.8,4769.0,3.597]
[1755964579168,0.03292643,4769.8,4769.1,2.09683168]
[1755964579377,0.03292643,4769.8,4768.8,0.02]
[1755964579581,0.4278,4769.7,4768.8,0.02]
[1755964580276,0.0358,4768.9,4768.8,0.02]
[1755964581859,5.55661962,4768.9,4768.8,0.02]
[1755964582083,5.75142881,4768.9,4768.8,0.02]
[1755964582383,6.3952607,4768.9,4768.8,0.02]
[1755964582586,6.95532553,4768.9,4768.8,0.02]
[1755964582772,2.09705154,4768.6,4768.5,0.251]
[1755964582981,5.52635721,4768.6,4768.5,0.251]
[1755964583184,5.97539262,4768.6,4768.5,0.251]
[1755964583394,6.39540203,4768.6,4768.5,0.251]
[1755964583556,10.32557295,4768.6,4768.5,0.251]
[1755964584656,8.22852141,4768.6,4768.5,0.251]
[1755964584991,10.32557295,4768.6,4768.5,0.251]
[1755964586397,10.32457295,4768.6,4768.5,0.251]
[1755964587172,10.68037295,4768.6,4768.5,0.251]
[1755964587499,7.07937295,4768.6,4768.5,0.251]
[1755964587800,10.68037295,4768.6,4768.5,0.251]
[1755964588163,11.43172647,4768.6,4768.5,0.251]
[1755964590912,2.31367493,4768.6,4768.5,0.251]
[1755964591074,4.34241508,4768.6,4768.5,0.251]
[1755964591279,4.5968687,4768.6,4768.5,0.251]
[1755964591479,4.5352687,4768.6,4768.5,0.251]